[Event "Early-Titled-Tuesday-Blitz-March-19-2024"]
[Site "Chess.com"]
[Date "2024.03.19"]
[Round "3"]
[White "maximnovik"]
[Black "Nitzan_Steinberg"]
[Result "0-1"]
[WhiteElo "2619"]
[BlackElo "2875"]
[TimeControl "180+1"]
[EndTime "8:30:58 PDT"]
[Termination "Nitzan_Steinberg won by checkmate"]

1. e4 {[%clk 0:02:58.9]} 1... e5 {[%clk 0:02:59.6]} 2. Nf3 {[%clk 0:02:58.9]}
2... Nc6 {[%clk 0:03:00]} 3. Bb5 {[%clk 0:02:58.9]} 3... a6 {[%clk 0:03:00.3]}
4. Ba4 {[%clk 0:02:59.1]} 4... Nf6 {[%clk 0:03:00.2]} 5. d3 {[%clk 0:02:58.9]}
5... d6 {[%clk 0:02:58.8]} 6. c3 {[%clk 0:02:58.7]} 6... g6 {[%clk 0:02:58.9]}
7. O-O {[%clk 0:02:58.8]} 7... Bg7 {[%clk 0:02:59.2]} 8. Re1 {[%clk 0:02:59.1]}
8... O-O {[%clk 0:02:59.5]} 9. Bxc6 {[%clk 0:02:59]} 9... bxc6 {[%clk
0:02:59.4]} 10. d4 {[%clk 0:02:59.9]} 10... Nd7 {[%clk 0:02:47.1]} 11. h3 {[%clk
0:02:56.2]} 11... a5 {[%clk 0:02:43.9]} 12. Na3 {[%clk 0:02:53.7]} 12... Ba6
{[%clk 0:02:40.1]} 13. Bg5 {[%clk 0:02:47.1]} 13... Qc8 {[%clk 0:02:33]} 14. Qd2
{[%clk 0:02:46.9]} 14... Re8 {[%clk 0:02:31.1]} 15. Rad1 {[%clk 0:02:41.5]}
15... Rb8 {[%clk 0:02:30.6]} 16. b3 {[%clk 0:02:39.2]} 16... exd4 {[%clk
0:02:19.5]} 17. cxd4 {[%clk 0:02:33.7]} 17... c5 {[%clk 0:02:15.3]} 18. Qxa5
{[%clk 0:02:11.2]} 18... Ra8 {[%clk 0:02:05.2]} 19. Qd2 {[%clk 0:02:09.3]} 19...
Bb7 {[%clk 0:02:01.3]} 20. Nc4 {[%clk 0:01:40.8]} 20... Bxe4 {[%clk 0:01:59.2]}
21. dxc5 {[%clk 0:01:26.2]} 21... Nxc5 {[%clk 0:01:53.3]} 22. Nd4 {[%clk
0:01:13.2]} 22... Qb7 {[%clk 0:01:42.4]} 23. f3 {[%clk 0:01:12.1]} 23... Bd3
{[%clk 0:01:32.9]} 24. Be3 {[%clk 0:00:55.1]} 24... Qd5 {[%clk 0:01:24.8]} 25.
Nb5 {[%clk 0:00:48]} 25... Qc6 {[%clk 0:01:13.4]} 26. Nd4 {[%clk 0:00:39.9]}
26... Qb7 {[%clk 0:01:04.7]} 27. Bf2 {[%clk 0:00:38.4]} 27... h5 {[%clk
0:00:59.6]} 28. Rxe8+ {[%clk 0:00:37.3]} 28... Rxe8 {[%clk 0:00:59.3]} 29. Re1
{[%clk 0:00:37.9]} 29... Qa8 {[%clk 0:00:48.8]} 30. Rxe8+ {[%clk 0:00:36.9]}
30... Qxe8 {[%clk 0:00:48.9]} 31. Nc2 {[%clk 0:00:32.3]} 31... Bxc4 {[%clk
0:00:38.9]} 32. bxc4 {[%clk 0:00:32.3]} 32... Qa4 {[%clk 0:00:39]} 33. Ne3
{[%clk 0:00:28.4]} 33... Be5 {[%clk 0:00:31.6]} 34. Nd5 {[%clk 0:00:28.4]} 34...
Qxc4 {[%clk 0:00:30.7]} 35. Nxc7 {[%clk 0:00:28.6]} 35... Nd3 {[%clk 0:00:24.4]}
36. Be3 {[%clk 0:00:25.9]} 36... Nf4 {[%clk 0:00:18.5]} 37. Ne8 {[%clk
0:00:20.5]} 37... Ne2+ {[%clk 0:00:08.6]} 38. Kf2 {[%clk 0:00:20.5]} 38... Bg3+
{[%clk 0:00:06.3]} 39. Kf1 {[%clk 0:00:20.7]} 39... Nd4+ {[%clk 0:00:04.7]} 40.
Kg1 {[%clk 0:00:20.4]} 40... Nf5 {[%clk 0:00:04.8]} 41. Bf2 {[%clk 0:00:14.3]}
41... Bf4 {[%clk 0:00:03.4]} 42. Qb2 {[%clk 0:00:12.6]} 42... Be5 {[%clk
0:00:03.3]} 43. Qd2 {[%clk 0:00:10]} 43... Qb5 {[%clk 0:00:02.9]} 44. Nc7 {[%clk
0:00:08.8]} 44... Qb1+ {[%clk 0:00:03.1]} 45. Qe1 {[%clk 0:00:09]} 45... Qxa2
{[%clk 0:00:03.2]} 46. Nb5 {[%clk 0:00:08.8]} 46... Qd5 {[%clk 0:00:02.6]} 47.
Nc3 {[%clk 0:00:08.1]} 47... Qc4 {[%clk 0:00:00.9]} 48. Ne4 {[%clk 0:00:08.3]}
48... Kg7 {[%clk 0:00:01.3]} 49. Qd1 {[%clk 0:00:08.1]} 49... Bd4 {[%clk
0:00:01.6]} 50. Bxd4+ {[%clk 0:00:07.8]} 50... Nxd4 {[%clk 0:00:02.3]} 51. Nf2
{[%clk 0:00:07.9]} 51... Qc5 {[%clk 0:00:01.6]} 52. Ne4 {[%clk 0:00:07.7]} 52...
Qb6 {[%clk 0:00:01.7]} 53. Kh1 {[%clk 0:00:07]} 53... Nf5 {[%clk 0:00:02]} 54.
Qa1+ {[%clk 0:00:06.9]} 54... Qd4 {[%clk 0:00:01.5]} 55. Qxd4+ {[%clk
0:00:06.7]} 55... Nxd4 {[%clk 0:00:02.4]} 56. Nxd6 {[%clk 0:00:07.4]} 56... h4
{[%clk 0:00:03]} 57. Ne4 {[%clk 0:00:07.9]} 57... f5 {[%clk 0:00:03]} 58. Nd2
{[%clk 0:00:07.1]} 58... Ne2 {[%clk 0:00:03.2]} 59. Nf1 {[%clk 0:00:06.4]} 59...
Kf6 {[%clk 0:00:03.1]} 60. Nd2 {[%clk 0:00:06.4]} 60... Ke5 {[%clk 0:00:03.4]}
61. Nc4+ {[%clk 0:00:06.4]} 61... Kf4 {[%clk 0:00:03.8]} 62. Nd6 {[%clk
0:00:06.7]} 62... Kg3 {[%clk 0:00:03.5]} 63. Nf7 {[%clk 0:00:06.6]} 63... Kf2
{[%clk 0:00:03.1]} 64. Ne5 {[%clk 0:00:06.6]} 64... Nf4 {[%clk 0:00:03.5]} 65.
Kh2 {[%clk 0:00:06.3]} 65... g5 {[%clk 0:00:02.4]} 66. Nf7 {[%clk 0:00:06.3]}
66... Nxg2 {[%clk 0:00:02.6]} 67. Nxg5 {[%clk 0:00:06.5]} 67... Ne1 {[%clk
0:00:02.8]} 68. f4 {[%clk 0:00:06.3]} 68... Nf3+ {[%clk 0:00:03.2]} 69. Nxf3
{[%clk 0:00:06.4]} 69... Kxf3 {[%clk 0:00:03.6]} 70. Kg1 {[%clk 0:00:06.9]}
70... Kg3 {[%clk 0:00:03.8]} 71. Kf1 {[%clk 0:00:05.8]} 71... Kxh3 {[%clk
0:00:04.7]} 72. Kf2 {[%clk 0:00:06.3]} 72... Kg4 {[%clk 0:00:05.3]} 73. Ke3
{[%clk 0:00:06.6]} 73... Kg3 {[%clk 0:00:05.9]} 74. Kd4 {[%clk 0:00:06.5]} 74...
h3 {[%clk 0:00:06.5]} 75. Ke5 {[%clk 0:00:06]} 75... h2 {[%clk 0:00:07.4]} 76.
Kxf5 {[%clk 0:00:06.1]} 76... h1=Q {[%clk 0:00:08.3]} 77. Kg5 {[%clk 0:00:06.4]}
77... Qh4+ {[%clk 0:00:08.4]} 78. Kf5 {[%clk 0:00:06.7]} 78... Qxf4+ {[%clk
0:00:09.1]} 79. Ke6 {[%clk 0:00:07.2]} 79... Qg5 {[%clk 0:00:09.4]} 80. Kd6
{[%clk 0:00:07.3]} 80... Kf4 {[%clk 0:00:10.3]} 81. Ke6 {[%clk 0:00:07.5]} 81...
Ke4 {[%clk 0:00:10.7]} 82. Kd6 {[%clk 0:00:08]} 82... Qf6+ {[%clk 0:00:11]} 83.
Kd7 {[%clk 0:00:08.2]} 83... Kd5 {[%clk 0:00:11.2]} 84. Kc7 {[%clk 0:00:08.6]}
84... Qc6+ {[%clk 0:00:11.3]} 85. Kd8 {[%clk 0:00:08.8]} 85... Qb7 {[%clk
0:00:11.6]} 86. Ke8 {[%clk 0:00:09]} 86... Ke6 {[%clk 0:00:12.5]} 87. Kd8 {[%clk
0:00:09.3]} 87... Qd7# {[%clk 0:00:13]} 0-1

[Event "Early-Titled-Tuesday-Blitz-March-19-2024"]
[Site "Chess.com"]
[Date "2024.03.19"]
[Round "3"]
[White "ragnaroek66"]
[Black "Zurability"]
[Result "1-0"]
[WhiteElo "2525"]
[BlackElo "2721"]
[TimeControl "180+1"]
[EndTime "8:31:00 PDT"]
[Termination "ragnaroek66 won by resignation"]

1. d4 {[%clk 0:02:59.7]} 1... Nf6 {[%clk 0:02:55.3]} 2. c4 {[%clk 0:02:59.7]}
2... e6 {[%clk 0:02:53.3]} 3. Nf3 {[%clk 0:02:59.5]} 3... d5 {[%clk 0:02:52.2]}
4. g3 {[%clk 0:03:00]} 4... Be7 {[%clk 0:02:52.2]} 5. Bg2 {[%clk 0:02:59.4]}
5... O-O {[%clk 0:02:52]} 6. O-O {[%clk 0:02:59.7]} 6... a5 {[%clk 0:02:52.1]}
7. Qc2 {[%clk 0:02:54.5]} 7... c6 {[%clk 0:02:51.9]} 8. Rd1 {[%clk 0:02:50.4]}
8... b6 {[%clk 0:02:50.9]} 9. Nbd2 {[%clk 0:02:45.6]} 9... Bb7 {[%clk
0:02:47.9]} 10. e4 {[%clk 0:02:44.9]} 10... Na6 {[%clk 0:02:48.2]} 11. a3 {[%clk
0:02:44.3]} 11... Rc8 {[%clk 0:02:47.7]} 12. e5 {[%clk 0:02:30.5]} 12... Nd7
{[%clk 0:02:26]} 13. cxd5 {[%clk 0:02:30.4]} 13... cxd5 {[%clk 0:02:23.8]} 14.
Qd3 {[%clk 0:02:29.7]} 14... Qc7 {[%clk 0:02:22.8]} 15. Nb1 {[%clk 0:02:21.4]}
15... Qxc1 {[%clk 0:02:14.4]} 16. Rxc1 {[%clk 0:02:20.6]} 16... Rxc1+ {[%clk
0:02:15.3]} 17. Bf1 {[%clk 0:02:21.3]} 17... Nab8 {[%clk 0:02:07.7]} 18. b4
{[%clk 0:02:08.3]} 18... axb4 {[%clk 0:01:36.8]} 19. axb4 {[%clk 0:02:09.2]}
19... Bxb4 {[%clk 0:01:31.9]} 20. Kg2 {[%clk 0:01:30.9]} 20... Rfc8 {[%clk
0:01:10.4]} 21. Ra4 {[%clk 0:01:20.6]} 21... Ba5 {[%clk 0:01:07.4]} 22. Qb3
{[%clk 0:01:08.6]} 22... Nc6 {[%clk 0:00:44.4]} 23. Qb2 {[%clk 0:01:00.6]} 23...
Nd8 {[%clk 0:00:34.4]} 24. Bb5 {[%clk 0:00:54.9]} 24... Nb8 {[%clk 0:00:27.6]}
25. Bd3 {[%clk 0:00:39.6]} 25... Rd1 {[%clk 0:00:18.2]} 26. Be2 {[%clk
0:00:35.7]} 26... Rdc1 {[%clk 0:00:18.1]} 27. Bd3 {[%clk 0:00:31]} 27... R1c7
{[%clk 0:00:18.6]} 28. Nfd2 {[%clk 0:00:27.1]} 28... Bc6 {[%clk 0:00:12.6]} 29.
Ra2 {[%clk 0:00:23.4]} 29... Be8 {[%clk 0:00:12]} 30. Nb3 {[%clk 0:00:20.6]}
30... Bb4 {[%clk 0:00:12.5]} 31. Qe2 {[%clk 0:00:18.9]} 31... g6 {[%clk
0:00:10.8]} 32. N1d2 {[%clk 0:00:18.1]} 32... Rc3 {[%clk 0:00:09.3]} 33. Na1
{[%clk 0:00:13.6]} 33... Nbc6 {[%clk 0:00:08.1]} 34. Nf3 {[%clk 0:00:13.1]}
34... Be7 {[%clk 0:00:06.7]} 35. Rc2 {[%clk 0:00:12.9]} 35... Nb4 {[%clk
0:00:06.8]} 36. Rxc3 {[%clk 0:00:13]} 36... Rxc3 {[%clk 0:00:07.7]} 37. Bb1
{[%clk 0:00:12.4]} 37... Rc1 {[%clk 0:00:08.2]} 38. Qb2 {[%clk 0:00:11.5]} 38...
Rc4 {[%clk 0:00:08.1]} 39. Ba2 {[%clk 0:00:10.6]} 39... Rc8 {[%clk 0:00:06.6]}
40. Bb3 {[%clk 0:00:09.9]} 40... Ndc6 {[%clk 0:00:06.7]} 41. Nc2 {[%clk
0:00:10.1]} 41... Nd3 {[%clk 0:00:06.4]} 42. Qc3 {[%clk 0:00:08.5]} 42... Nc1
{[%clk 0:00:06]} 43. Qb2 {[%clk 0:00:07.1]} 43... Nxb3 {[%clk 0:00:06]} 44. Qxb3
{[%clk 0:00:07.4]} 44... Na5 {[%clk 0:00:06.9]} 45. Qb1 {[%clk 0:00:06.6]} 45...
Nc4 {[%clk 0:00:07]} 46. Ne3 {[%clk 0:00:06.7]} 46... b5 {[%clk 0:00:06.6]} 47.
Ne1 {[%clk 0:00:06.2]} 47... Bc6 {[%clk 0:00:06.2]} 48. Nd3 {[%clk 0:00:05.8]}
48... Rb8 {[%clk 0:00:06.5]} 49. Nb4 {[%clk 0:00:05.2]} 49... Bd7 {[%clk
0:00:06.2]} 50. Nec2 {[%clk 0:00:04.6]} 50... Ra8 {[%clk 0:00:06.2]} 51. Qb3
{[%clk 0:00:04.2]} 51... Ra4 {[%clk 0:00:06.3]} 52. h4 {[%clk 0:00:02.4]} 52...
h5 {[%clk 0:00:05.7]} 53. Qb1 {[%clk 0:00:02.7]} 53... Kg7 {[%clk 0:00:05.9]}
54. Qb3 {[%clk 0:00:03]} 54... Nd2 {[%clk 0:00:05.9]} 55. Qb2 {[%clk 0:00:03.1]}
55... Ne4 {[%clk 0:00:06.4]} 56. f3 {[%clk 0:00:03.1]} 56... Nd2 {[%clk
0:00:06.7]} 57. Kh3 {[%clk 0:00:03.6]} 57... Nc4 {[%clk 0:00:07.2]} 58. Qc3
{[%clk 0:00:03.9]} 58... Ra8 {[%clk 0:00:06.6]} 59. Qb3 {[%clk 0:00:03.7]} 59...
Ra4 {[%clk 0:00:06.9]} 60. Qc3 {[%clk 0:00:04.1]} 60... f6 {[%clk 0:00:07.5]}
61. f4 {[%clk 0:00:03.6]} 61... fxe5 {[%clk 0:00:07.1]} 62. fxe5 {[%clk
0:00:04.5]} 62... g5 {[%clk 0:00:06.6]} 63. hxg5 {[%clk 0:00:04.5]} 63... Bxg5
{[%clk 0:00:07.5]} 64. Qf3 {[%clk 0:00:04.5]} 64... Kg6 {[%clk 0:00:06.9]} 65.
Qd3+ {[%clk 0:00:04.5]} 65... Kg7 {[%clk 0:00:07.1]} 66. Qf3 {[%clk 0:00:04.4]}
66... Be7 {[%clk 0:00:07.6]} 67. Qc3 {[%clk 0:00:04.5]} 67... Ra8 {[%clk
0:00:06.6]} 68. Nd3 {[%clk 0:00:04.9]} 68... Ra2 {[%clk 0:00:05.6]} 69. Ncb4
{[%clk 0:00:04.1]} 69... Re2 {[%clk 0:00:05.2]} 70. Nc5 {[%clk 0:00:04.2]} 70...
Re3 {[%clk 0:00:05.1]} 71. Qc2 {[%clk 0:00:03.5]} 71... Be8 {[%clk 0:00:04.8]}
72. Nxe6+ {[%clk 0:00:03.3]} 72... Kf7 {[%clk 0:00:04.5]} 73. Nf4 {[%clk
0:00:03.6]} 73... Bd7+ {[%clk 0:00:04]} 74. e6+ {[%clk 0:00:03.5]} 74... Bxe6+
{[%clk 0:00:04.2]} 75. Nxe6 {[%clk 0:00:04]} 75... Rxe6 {[%clk 0:00:04.9]} 76.
Nxd5 {[%clk 0:00:03]} 76... Nd6 {[%clk 0:00:02.5]} 77. Qh7+ {[%clk 0:00:02.9]}
77... Ke8 {[%clk 0:00:03]} 78. Nc7+ {[%clk 0:00:03.1]} 78... Kd7 {[%clk
0:00:03.4]} 79. Nxe6 {[%clk 0:00:04]} 79... Kxe6 {[%clk 0:00:04.3]} 80. Qxh5
{[%clk 0:00:04.7]} 80... Bf6 {[%clk 0:00:02.5]} 81. d5+ {[%clk 0:00:04.3]} 81...
Kd7 {[%clk 0:00:02.7]} 82. Qe2 {[%clk 0:00:05]} 82... b4 {[%clk 0:00:02.7]} 83.
Qe6+ {[%clk 0:00:05.2]} 83... Kc7 {[%clk 0:00:03.3]} 84. Qxf6 {[%clk 0:00:06.1]}
84... Kb6 {[%clk 0:00:03.9]} 85. Qb2 {[%clk 0:00:06.2]} 85... Kc5 {[%clk
0:00:04.8]} 86. g4 {[%clk 0:00:06.4]} 86... Nc4 {[%clk 0:00:04.9]} 87. Qf2+
{[%clk 0:00:05.9]} 87... Kxd5 {[%clk 0:00:04.2]} 88. g5 {[%clk 0:00:06.4]} 88...
b3 {[%clk 0:00:05]} 89. g6 {[%clk 0:00:06.6]} 89... b2 {[%clk 0:00:05.7]} 90.
Qc2 {[%clk 0:00:06.9]} 1-0

[Event "Early-Titled-Tuesday-Blitz-March-19-2024"]
[Site "Chess.com"]
[Date "2024.03.19"]
[Round "3"]
[White "jup1978"]
[Black "mbojan"]
[Result "0-1"]
[WhiteElo "2525"]
[BlackElo "2798"]
[TimeControl "180+1"]
[EndTime "8:31:22 PDT"]
[Termination "mbojan won by checkmate"]

1. e4 {[%clk 0:02:55]} 1... e6 {[%clk 0:02:57.7]} 2. d4 {[%clk 0:02:53.6]} 2...
a6 {[%clk 0:02:58.1]} 3. c4 {[%clk 0:02:50.5]} 3... d5 {[%clk 0:02:57.3]} 4. Nc3
{[%clk 0:02:44]} 4... dxe4 {[%clk 0:02:58.2]} 5. Nxe4 {[%clk 0:02:43.6]} 5...
Bb4+ {[%clk 0:02:58.5]} 6. Nc3 {[%clk 0:02:41.1]} 6... c5 {[%clk 0:02:57.9]} 7.
Nf3 {[%clk 0:02:39.6]} 7... Nf6 {[%clk 0:02:57.7]} 8. Be2 {[%clk 0:02:37.1]}
8... Nc6 {[%clk 0:02:52.5]} 9. Be3 {[%clk 0:02:26.7]} 9... cxd4 {[%clk 0:02:52]}
10. Nxd4 {[%clk 0:02:26]} 10... Bd7 {[%clk 0:02:47.7]} 11. O-O {[%clk
0:02:23.3]} 11... Nxd4 {[%clk 0:02:48.1]} 12. Qxd4 {[%clk 0:02:21.6]} 12... Bc6
{[%clk 0:02:48.4]} 13. a3 {[%clk 0:02:19.3]} 13... Bxc3 {[%clk 0:02:24.2]} 14.
Qxc3 {[%clk 0:02:15.7]} 14... O-O {[%clk 0:02:24.4]} 15. Bg5 {[%clk 0:02:08.4]}
15... Ne4 {[%clk 0:02:21.3]} 16. Bxd8 {[%clk 0:02:01.6]} 16... Nxc3 {[%clk
0:02:21.5]} 17. bxc3 {[%clk 0:01:58.3]} 17... Rfxd8 {[%clk 0:02:20.9]} 18. Rfd1
{[%clk 0:01:59.2]} 18... Kf8 {[%clk 0:02:19.9]} 19. f3 {[%clk 0:01:59.2]} 19...
Ke7 {[%clk 0:02:19.1]} 20. Kf2 {[%clk 0:01:59.8]} 20... e5 {[%clk 0:02:03.9]}
21. Ke3 {[%clk 0:01:52.4]} 21... Rxd1 {[%clk 0:01:51.8]} 22. Rxd1 {[%clk
0:01:50.8]} 22... Rd8 {[%clk 0:01:52.7]} 23. Rxd8 {[%clk 0:01:49.6]} 23... Kxd8
{[%clk 0:01:53.6]} 24. g3 {[%clk 0:01:50]} 24... Ke7 {[%clk 0:01:51.7]} 25. c5
{[%clk 0:01:48.6]} 25... f5 {[%clk 0:01:33.1]} 26. f4 {[%clk 0:01:47.4]} 26...
Kf6 {[%clk 0:01:33.5]} 27. Bc4 {[%clk 0:01:40.3]} 27... h6 {[%clk 0:01:32.8]}
28. Bd3 {[%clk 0:01:30]} 28... g5 {[%clk 0:01:30.7]} 29. Bc4 {[%clk 0:01:27.6]}
29... exf4+ {[%clk 0:00:51.6]} 30. gxf4 {[%clk 0:01:28.5]} 30... h5 {[%clk
0:00:52.2]} 31. Be2 {[%clk 0:01:14]} 31... g4 {[%clk 0:00:50.7]} 32. Bc4 {[%clk
0:01:11.6]} 32... h4 {[%clk 0:00:50.8]} 33. Kf2 {[%clk 0:01:11.3]} 33... Be4
{[%clk 0:00:50.1]} 34. Bb3 {[%clk 0:00:58.2]} 34... Ke7 {[%clk 0:00:49.8]} 35.
Ba4 {[%clk 0:00:56.3]} 35... Kd8 {[%clk 0:00:40.2]} 36. Bb3 {[%clk 0:00:54.6]}
36... Kc8 {[%clk 0:00:38.3]} 37. Bd1 {[%clk 0:00:51.2]} 37... Kd7 {[%clk
0:00:37.5]} 38. Ba4+ {[%clk 0:00:50.5]} 38... Kc7 {[%clk 0:00:38.2]} 39. Be8
{[%clk 0:00:47.2]} 39... Bc6 {[%clk 0:00:31]} 40. Bf7 {[%clk 0:00:43.9]} 40...
Kd7 {[%clk 0:00:28.4]} 41. Bb3 {[%clk 0:00:41.9]} 41... Be4 {[%clk 0:00:20]} 42.
Ba4+ {[%clk 0:00:41]} 42... Ke6 {[%clk 0:00:20.5]} 43. Bb3+ {[%clk 0:00:40.6]}
43... Bd5 {[%clk 0:00:21.2]} 44. Bc2 {[%clk 0:00:35.5]} 44... Bc4 {[%clk
0:00:21.6]} 45. Bb1 {[%clk 0:00:34.8]} 45... Bb3 {[%clk 0:00:20.7]} 46. Bd3
{[%clk 0:00:34.5]} 46... Kf6 {[%clk 0:00:17.8]} 47. c6 {[%clk 0:00:34]} 47...
bxc6 {[%clk 0:00:12.7]} 48. Bxa6 {[%clk 0:00:33.2]} 48... Bc2 {[%clk 0:00:11.8]}
49. Bb7 {[%clk 0:00:32]} 49... c5 {[%clk 0:00:09.8]} 50. Bc6 {[%clk 0:00:29.9]}
50... Ke6 {[%clk 0:00:10.3]} 51. Bb7 {[%clk 0:00:26.9]} 51... Kd6 {[%clk
0:00:09.9]} 52. Bc8 {[%clk 0:00:22.2]} 52... Kc6 {[%clk 0:00:05.8]} 53. Be6
{[%clk 0:00:18.7]} 53... Kb5 {[%clk 0:00:05.2]} 54. Bd7+ {[%clk 0:00:10]} 54...
Kb6 {[%clk 0:00:05.7]} 55. Be8 {[%clk 0:00:09.3]} 55... Be4 {[%clk 0:00:05.4]}
56. Bd7 {[%clk 0:00:09.6]} 56... Kc7 {[%clk 0:00:05.8]} 57. Be8 {[%clk
0:00:09.9]} 57... Kd6 {[%clk 0:00:06]} 58. Bb5 {[%clk 0:00:10.5]} 58... Kd5
{[%clk 0:00:06.4]} 59. a4 {[%clk 0:00:10.9]} 59... Kd6 {[%clk 0:00:04.1]} 60. a5
{[%clk 0:00:11.1]} 60... Kc7 {[%clk 0:00:04.8]} 61. a6 {[%clk 0:00:11]} 61...
Kb6 {[%clk 0:00:05]} 62. Bc4 {[%clk 0:00:11.5]} 62... Ka7 {[%clk 0:00:04.5]} 63.
Be2 {[%clk 0:00:11.2]} 63... Kb6 {[%clk 0:00:04.4]} 64. Bc4 {[%clk 0:00:11.4]}
64... Kc7 {[%clk 0:00:04.5]} 65. Be2 {[%clk 0:00:11.4]} 65... Bd5 {[%clk
0:00:04.4]} 66. Bd3 {[%clk 0:00:11.4]} 66... Be6 {[%clk 0:00:05.1]} 67. Be2
{[%clk 0:00:11]} 67... c4 {[%clk 0:00:03.5]} 68. Bf1 {[%clk 0:00:07]} 68... Kb6
{[%clk 0:00:03.8]} 69. Bg2 {[%clk 0:00:07.2]} 69... Kxa6 {[%clk 0:00:04.1]} 70.
Bc6 {[%clk 0:00:07.8]} 70... Kb6 {[%clk 0:00:04.6]} 71. Be8 {[%clk 0:00:08.2]}
71... Kc5 {[%clk 0:00:04.9]} 72. Ba4 {[%clk 0:00:08.6]} 72... Kd5 {[%clk
0:00:04.9]} 73. Ke3 {[%clk 0:00:08.2]} 73... Kc5 {[%clk 0:00:04.1]} 74. Bc2
{[%clk 0:00:07.5]} 74... Bd7 {[%clk 0:00:03.7]} 75. Kf2 {[%clk 0:00:08.1]} 75...
Kd5 {[%clk 0:00:03.6]} 76. Ke3 {[%clk 0:00:07.6]} 76... Bc8 {[%clk 0:00:03.4]}
77. Kf2 {[%clk 0:00:07.1]} 77... Ke6 {[%clk 0:00:03.8]} 78. Ke3 {[%clk
0:00:07.6]} 78... Bb7 {[%clk 0:00:04.4]} 79. Kf2 {[%clk 0:00:07.9]} 79... Be4
{[%clk 0:00:04.5]} 80. Ba4 {[%clk 0:00:08.5]} 80... Kd5 {[%clk 0:00:05]} 81. Bd1
{[%clk 0:00:07.6]} 81... Kc5 {[%clk 0:00:04.7]} 82. Ke3 {[%clk 0:00:07.2]} 82...
Bd3 {[%clk 0:00:04.5]} 83. Kf2 {[%clk 0:00:06.9]} 83... Kb6 {[%clk 0:00:04.6]}
84. Ke3 {[%clk 0:00:06.8]} 84... Kc6 {[%clk 0:00:05]} 85. Kf2 {[%clk 0:00:07.4]}
85... Kd6 {[%clk 0:00:05.6]} 86. Ke3 {[%clk 0:00:07.9]} 86... Kd5 {[%clk
0:00:06.3]} 87. Ba4 {[%clk 0:00:06.3]} 87... Be4 {[%clk 0:00:06.8]} 88. Kf2
{[%clk 0:00:06.6]} 88... Bh1 {[%clk 0:00:06.1]} 89. Bd1 {[%clk 0:00:06.9]} 89...
Ke4 {[%clk 0:00:04.8]} 90. Bc2+ {[%clk 0:00:06.9]} 90... Kxf4 {[%clk 0:00:05.2]}
91. Bd1 {[%clk 0:00:07.5]} 91... Be4 {[%clk 0:00:05.4]} 92. Be2 {[%clk
0:00:07.4]} 92... Bd3 {[%clk 0:00:05.9]} 93. Bd1 {[%clk 0:00:06.6]} 93... g3+
{[%clk 0:00:06]} 94. hxg3+ {[%clk 0:00:06.6]} 94... hxg3+ {[%clk 0:00:06.9]} 95.
Kg2 {[%clk 0:00:07]} 95... Be4+ {[%clk 0:00:07.3]} 96. Kg1 {[%clk 0:00:07.7]}
96... Ke3 {[%clk 0:00:07.5]} 97. Be2 {[%clk 0:00:07.2]} 97... Bd5 {[%clk
0:00:04.5]} 98. Bf1 {[%clk 0:00:05.9]} 98... f4 {[%clk 0:00:05]} 99. Be2 {[%clk
0:00:06]} 99... f3 {[%clk 0:00:05]} 100. Bxf3 {[%clk 0:00:04.5]} 100... Kxf3
{[%clk 0:00:05.9]} 101. Kh1 {[%clk 0:00:03.8]} 101... Kf2# {[%clk 0:00:05.9]}
0-1